[Event "Grandmaster Triathlon (GM1)"]
[Site "Biel, CH"]
[Date "2025.07.23"]
[Round "22"]
[White "Salem, A.R. Saleh"]
[Black "Aravindh, Chithambaram VR."]
[Result "0-1"]
[Board "2"]
[TimeControl "40/7200+30:1800+30"]
[WhiteFideId "9301348"]
[BlackFideId "5072786"]
[WhiteTitle "GM"]
[BlackTitle "GM"]
[WhiteElo "2627"]
[BlackElo "2724"]
[WhiteTeam "UAE"]
[BlackTeam "IND"]
[WhiteClock "0:13:39"]
[BlackClock "0:36:17"]
[Variant "Standard"]

1. d4 {[%clk 1:59:32]}  d5 {[%clk 1:59:43]} 2. Nf3 {[%clk 1:56:30]}  c5 {[%clk 1:59:31]} 3. c4 {[%clk 1:52:47]}  dxc4 {[%clk 1:59:06]} 4. d5 {[%clk 1:48:17]}  Nf6 {[%clk 1:58:41]} 5. Nc3 {[%clk 1:47:52]}  e6 {[%clk 1:58:27]} 6. e4 {[%clk 1:47:31]}  exd5 {[%clk 1:58:14]} 7. exd5 {[%clk 1:46:26]}  Bd6 {[%clk 1:57:58]} 8. Bxc4 {[%clk 1:45:48]}  O-O {[%clk 1:57:48]} 9. O-O {[%clk 1:45:39]}  h6 {[%clk 1:57:27]} 10. h3 {[%clk 1:39:17]}  a6 {[%clk 1:55:12]} 11. a4 {[%clk 1:39:13]}  Bf5 {[%clk 1:55:02]} 12. Nh4 {[%clk 1:32:49]}  Bh7 {[%clk 1:54:53]} 13. Bd3 {[%clk 1:32:41]}  Bxd3 {[%clk 1:54:43]} 14. Qxd3 {[%clk 1:32:38]}  Nc6 {[%clk 1:54:37]} 15. Nf5 {[%clk 1:28:19]}  Ne7 {[%clk 1:54:30]} 16. Ne3 {[%clk 1:22:58]}  Qc7 {[%clk 1:36:34]} 17. Rd1 {[%clk 1:18:20]}  Rad8 {[%clk 1:36:11]} 18. Qc4 {[%clk 1:07:07]}  Rd7 {[%clk 1:14:19]} 19. Ra3 {[%clk 0:45:49]}  Rfd8 {[%clk 1:10:05]} 20. Bd2 {[%clk 0:25:32]}  Nexd5 {[%clk 0:55:06]} 21. Ncxd5 {[%clk 0:21:01]}  Nxd5 {[%clk 0:54:52]} 22. Nf1 {[%clk 0:20:27]}  Be5 {[%clk 0:49:49]} 23. Re1 {[%clk 0:19:01]}  Bxb2 {[%clk 0:48:54]} 24. Rf3 {[%clk 0:19:00]}  Bd4 {[%clk 0:44:53]} 25. Re4 {[%clk 0:16:58]}  Nf6 {[%clk 0:42:06]} 26. Rh4 {[%clk 0:16:35]}  Be5 {[%clk 0:38:27]} 27. Be3 {[%clk 0:15:17]}  Rd1 {[%clk 0:38:07]} 28. Qe2 {[%clk 0:13:39]}  Rb1 {[%clk 0:36:17]} 0-1

[Event "Grandmaster Triathlon (GM1)"]
[Site "Biel, CH"]
[Date "2025.07.24"]
[Round "23"]
[White "Murzin, Volodar"]
[Black "Aravindh, Chithambaram VR."]
[Result "1/2-1/2"]
[Board "1"]
[TimeControl "40/7200+30:1800+30"]
[WhiteFideId "44155573"]
[BlackFideId "5072786"]
[WhiteTitle "GM"]
[BlackTitle "GM"]
[WhiteElo "2671"]
[BlackElo "2724"]
[WhiteTeam "FID"]
[BlackTeam "IND"]
[WhiteClock "1:15:39"]
[BlackClock "0:53:06"]
[Variant "Standard"]

1. d4 {[%clk 1:59:58]}  d5 {[%clk 1:59:48]} 2. Nf3 {[%clk 1:59:55]}  Nf6 {[%clk 1:59:38]} 3. Bf4 {[%clk 1:59:53]}  Bf5 {[%clk 1:59:14]} 4. e3 {[%clk 1:59:36]}  e6 {[%clk 1:59:07]} 5. Nbd2 {[%clk 1:59:22]}  Bd6 {[%clk 1:57:35]} 6. Bxd6 {[%clk 1:59:00]}  cxd6 {[%clk 1:54:53]} 7. c4 {[%clk 1:58:44]}  dxc4 {[%clk 1:52:36]} 8. Bxc4 {[%clk 1:58:39]}  O-O {[%clk 1:52:28]} 9. O-O {[%clk 1:58:26]}  Nbd7 {[%clk 1:47:13]} 10. Qb3 {[%clk 1:57:21]}  Qb6 {[%clk 1:45:40]} 11. Rfc1 {[%clk 1:56:42]}  Rfc8 {[%clk 1:44:54]} 12. Bf1 {[%clk 1:54:38]}  Ne4 {[%clk 1:42:08]} 13. Nxe4 {[%clk 1:52:04]}  Bxe4 {[%clk 1:41:52]} 14. Nd2 {[%clk 1:51:57]}  Bd5 {[%clk 1:35:38]} 15. Qb5 {[%clk 1:44:15]}  Bc6 {[%clk 1:33:07]} 16. Qb3 {[%clk 1:39:49]}  Qxb3 {[%clk 1:27:50]} 17. Nxb3 {[%clk 1:36:42]}  a5 {[%clk 1:24:56]} 18. Nd2 {[%clk 1:35:39]}  Nb6 {[%clk 1:16:16]} 19. Nc4 {[%clk 1:27:18]}  Nxc4 {[%clk 1:15:51]} 20. Bxc4 {[%clk 1:27:12]}  Kf8 {[%clk 1:09:53]} 21. f3 {[%clk 1:24:10]}  Ke7 {[%clk 1:08:31]} 22. Bd3 {[%clk 1:22:28]}  Bd7 {[%clk 1:07:43]} 23. Kf2 {[%clk 1:21:57]}  Rxc1 {[%clk 1:07:13]} 24. Rxc1 {[%clk 1:21:55]}  Rc8 {[%clk 1:07:08]} 25. Rxc8 {[%clk 1:21:26]}  Bxc8 {[%clk 1:07:06]} 26. a3 {[%clk 1:20:51]}  h6 {[%clk 1:06:40]} 27. f4 {[%clk 1:19:36]}  d5 {[%clk 1:01:28]} 28. Ke1 {[%clk 1:18:40]}  Bd7 {[%clk 1:01:07]} 29. Kd2 {[%clk 1:18:16]}  b6 {[%clk 0:59:49]} 30. b3 {[%clk 1:16:44]}  f5 {[%clk 0:56:40]} 31. Ke1 {[%clk 1:16:31]}  Kf6 {[%clk 0:56:28]} 32. Kf2 {[%clk 1:16:24]}  Be8 {[%clk 0:55:32]} 33. Be2 {[%clk 1:16:18]}  Bd7 {[%clk 0:53:20]} 34. Bd3 {[%clk 1:16:11]}  Be8 {[%clk 0:53:15]} 35. Be2 {[%clk 1:16:07]}  Bd7 {[%clk 0:53:11]} 36. Bd3 {[%clk 1:16:02]}  Be8 {[%clk 0:53:06]} 37. Be2 {[%clk 1:15:39]} 1/2-1/2

[Event "Grandmaster Triathlon (GM1)"]
[Site "Biel, CH"]
[Date "2025.07.24"]
[Round "23"]
[White "Fedoseev, Vladimir"]
[Black "Salem, A.R. Saleh"]
[Result "1-0"]
[Board "2"]
[TimeControl "40/7200+30:1800+30"]
[WhiteFideId "24130737"]
[BlackFideId "9301348"]
[WhiteTitle "GM"]
[BlackTitle "GM"]
[WhiteElo "2739"]
[BlackElo "2627"]
[WhiteTeam "SLO"]
[BlackTeam "UAE"]
[WhiteClock "0:43:27"]
[BlackClock "0:09:26"]
[Variant "Standard"]

1. d4 {[%clk 1:59:56]}  Nf6 {[%clk 1:59:50]} 2. c4 {[%clk 1:59:51]}  g6 {[%clk 1:59:45]} 3. Nc3 {[%clk 1:59:45]}  d5 {[%clk 1:59:37]} 4. Bg5 {[%clk 1:59:38]}  Ne4 {[%clk 1:59:27]} 5. cxd5 {[%clk 1:59:24]}  Nxg5 {[%clk 1:58:43]} 6. h4 {[%clk 1:59:16]}  Ne4 {[%clk 1:57:05]} 7. Nxe4 {[%clk 1:59:04]}  Qxd5 {[%clk 1:57:01]} 8. Nc3 {[%clk 1:58:57]}  Qa5 {[%clk 1:55:01]} 9. h5 {[%clk 1:58:50]}  Bg7 {[%clk 1:51:05]} 10. h6 {[%clk 1:58:44]}  Bf6 {[%clk 1:51:02]} 11. Qd2 {[%clk 1:58:37]}  O-O {[%clk 1:48:35]} 12. Nf3 {[%clk 1:58:32]}  Rd8 {[%clk 1:41:15]} 13. e3 {[%clk 1:58:26]}  c5 {[%clk 1:38:00]} 14. d5 {[%clk 1:58:19]}  Nd7 {[%clk 1:28:38]} 15. Be2 {[%clk 1:52:07]}  Nb6 {[%clk 1:17:19]} 16. e4 {[%clk 1:51:28]}  Bg4 {[%clk 1:17:13]} 17. Rc1 {[%clk 1:44:41]}  Bxf3 {[%clk 1:03:25]} 18. gxf3 {[%clk 1:43:54]}  e6 {[%clk 0:56:39]} 19. Qf4 {[%clk 1:38:29]}  Bd4 {[%clk 0:55:35]} 20. O-O {[%clk 1:19:42]}  exd5 {[%clk 0:43:59]} 21. Nb5 {[%clk 1:19:23]}  dxe4 {[%clk 0:42:23]} 22. Nxd4 {[%clk 1:13:27]}  cxd4 {[%clk 0:42:21]} 23. fxe4 {[%clk 1:09:20]}  Qb4 {[%clk 0:28:48]} 24. Rc7 {[%clk 1:06:37]}  Rd7 {[%clk 0:25:46]} 25. Rfc1 {[%clk 1:04:53]}  d3 {[%clk 0:21:29]} 26. Bxd3 {[%clk 1:01:03]}  Qxb2 {[%clk 0:20:32]} 27. a4 {[%clk 0:56:43]}  Rf8 {[%clk 0:20:10]} 28. R7c3 {[%clk 0:49:34]}  Rfd8 {[%clk 0:15:16]} 29. Qf6 {[%clk 0:45:06]}  Kf8 {[%clk 0:15:14]} 30. Bb5 {[%clk 0:44:47]}  Rd1+ {[%clk 0:10:40]} 31. Kg2 {[%clk 0:44:10]}  Qb4 {[%clk 0:09:26]} 32. Rf3 {[%clk 0:43:27]} 1-0